bitfinex-derivatives/quotes_BTCF0:USTF0_20250629
["timestamp","ask_amount","ask_price","bid_price","bid_amount"]
[1751191058506,0.39810566,107940.0,107930.0,0.90415349]
[1751191060705,0.39810566,107940.0,107930.0,0.66339992]
[1751191060905,0.39810566,107940.0,107930.0,0.91834421]
[1751191061512,0.3223444,107940.0,107930.0,0.9551309]
[1751191061716,0.3223444,107940.0,107930.0,0.95511633]
[1751191061903,0.004,107940.0,107930.0,1.52247633]
[1751191062105,0.004,107940.0,107930.0,1.55004032]
[1751191063110,0.004,107940.0,107930.0,1.73533632]
[1751191063511,0.004,107940.0,107930.0,1.68442605]
[1751191064109,0.1892244,107940.0,107930.0,1.68442605]
[1751191064316,0.1892244,107940.0,107930.0,1.72129783]
[1751191064510,0.1892244,107940.0,107930.0,1.70681522]
[1751191064910,0.1892244,107940.0,107930.0,1.66994344]
[1751191066312,0.1892244,107940.0,107930.0,1.70680538]
[1751191068320,0.1892244,107940.0,107930.0,1.52150938]
[1751191069617,0.1892244,107940.0,107930.0,1.52146938]
[1751191070017,0.2200244,107940.0,107930.0,1.52146938]
[1751191071021,0.2200244,107940.0,107930.0,0.95414938]
[1751191071220,0.2200244,107940.0,107930.0,1.52142938]
[1751191071817,0.2200244,107940.0,107930.0,1.49026938]
[1751191074919,0.2200244,107940.0,107930.0,1.43503663]
[1751191075317,0.2200244,107940.0,107930.0,1.49026938]
[1751191075718,0.2500244,107940.0,107930.0,1.43503663]
[1751191075920,0.2200244,107940.0,107930.0,1.43503663]
[1751191076417,0.2815244,107940.0,107930.0,1.43503663]
[1751191077222,0.2815244,107940.0,107930.0,1.18009234]
[1751191077421,0.2815244,107940.0,107930.0,1.43503663]
[1751191079123,0.2815244,107940.0,107930.0,1.46269044]
[1751191080025,0.2815244,107940.0,107930.0,1.17774615]
[1751191080425,0.2815244,107940.0,107930.0,1.43269044]
[1751191080726,0.2815244,107940.0,107930.0,0.68032884]
[1751191080914,0.2815244,107940.0,107930.0,0.99186455]
[1751191081114,0.2815244,107940.0,107930.0,1.17710615]
[1751191081314,0.2815244,107940.0,107930.0,1.14945234]
[1751191081519,0.2815244,107940.0,107930.0,1.1771095]
[1751191081725,0.2815244,107940.0,107930.0,0.9689878]
[1751191082021,0.2815244,107940.0,107930.0,0.4025078]
[1751191082227,0.53646869,107940.0,107930.0,0.9689078]
[1751191082820,0.53646869,107940.0,107930.0,1.00576974]
[1751191083522,0.66878869,107940.0,107930.0,0.43936974]
[1751191084923,0.66878869,107940.0,107930.0,0.43008339]
[1751191085121,0.66878869,107940.0,107930.0,0.46698006]
[1751191086231,0.66878869,107940.0,107930.0,0.41174731]
[1751191089433,0.66878869,107940.0,107930.0,0.46698006]
[1751191089625,0.66878869,107940.0,107930.0,0.41174731]
[1751191090230,1.02958869,107940.0,107930.0,0.07863369]
[1751191090427,1.02958869,107940.0,107930.0,0.06465185]
[1751191090628,1.28453298,107940.0,107930.0,0.02775518]
[1751191090934,1.02958869,107940.0,107930.0,0.02775518]
[1751191091134,1.28453298,107940.0,107930.0,0.02775518]
[1751191091523,1.02958869,107940.0,107930.0,0.02775518]
[1751191092933,1.59542869,107940.0,107930.0,0.02775518]
[1751191093133,0.004,107940.0,107930.0,0.21299678]
[1751191093326,0.1851901,107960.0,107950.0,0.3240968]
[1751191093632,0.1851901,107960.0,107950.0,0.93778841]
[1751191093835,0.1851901,107960.0,107950.0,0.68284412]
[1751191094028,0.1851901,107960.0,107950.0,1.03608841]
[1751191094439,0.3245101,107960.0,107950.0,1.03608841]
[1751191094640,0.1921901,107960.0,107950.0,1.03608841]
[1751191094934,0.3245101,107960.0,107950.0,1.03608841]
[1751191097133,0.3245101,107960.0,107950.0,1.0729698]
[1751191097634,0.3245101,107960.0,107950.0,1.04530876]
[1751191098232,0.3245101,107960.0,107950.0,1.63948088]
[1751191098735,0.3245101,107960.0,107950.0,1.66706151]
[1751191099935,0.3245101,107960.0,107950.0,1.62075971]
[1751191100141,0.3245101,107960.0,107950.0,1.54135791]
[1751191100335,0.4176101,107960.0,107950.0,1.06772222]
[1751191100531,0.67255439,107960.0,107950.0,1.06772222]
[1751191100736,0.4176101,107960.0,107950.0,1.06772222]
[1751191100929,0.4176101,107960.0,107950.0,0.50140222]
[1751191101125,0.67255439,107960.0,107950.0,0.44616947]
[1751191101631,0.67255439,107960.0,107950.0,0.41426947]
[1751191102634,0.67255439,107960.0,107950.0,0.44190319]
[1751191104939,0.67255439,107960.0,107950.0,0.4050218]
[1751191105236,0.4176101,107960.0,107950.0,0.4050218]
[1751191105436,0.67255439,107960.0,107950.0,0.4050218]
[1751191106033,0.1921901,107960.0,107950.0,0.88205468]
[1751191106238,0.007,107960.0,107950.0,0.94635468]
[1751191106537,0.007,107960.0,107950.0,0.97395371]
[1751191106731,0.007,107960.0,107950.0,1.0490205]
[1751191107734,0.007,107960.0,107950.0,1.05808547]
[1751191108036,0.007,107960.0,107950.0,1.41888547]
[1751191108835,0.007,107960.0,107950.0,1.38200408]
[1751191109741,0.19219,107960.0,107950.0,1.38200408]
[1751191110142,0.19219,107960.0,107950.0,1.4188004]
[1751191110339,0.19219,107960.0,107950.0,1.38200408]
[1751191111241,0.007,107960.0,107950.0,1.38200408]
[1751191111438,0.19219,107960.0,107950.0,1.38200408]
[1751191115153,0.19219,107960.0,107950.0,1.39112501]
[1751191115448,0.007,107960.0,107950.0,1.39112501]
[1751191118152,0.007,107960.0,107950.0,1.36354486]
[1751191118346,0.1921901,107960.0,107950.0,1.36354486]
[1751191119052,0.007,107960.0,107950.0,1.36354486]
[1751191119452,0.1921901,107960.0,107950.0,1.36354486]
[1751191120055,0.1921901,107960.0,107950.0,1.41877761]
[1751191123053,0.1921901,107960.0,107950.0,1.38200408]
[1751191123758,0.1921901,107960.0,107950.0,1.12705979]
[1751191123958,0.1921901,107960.0,107950.0,1.38200408]
[1751191124956,0.007,107960.0,107950.0,1.40053574]
[1751191126264,0.007,107960.0,107950.0,1.14559145]
[1751191126456,0.1921901,107960.0,107950.0,1.40053574]
[1751191129463,0.2250901,107960.0,107950.0,1.40053574]
[1751191131773,0.2250901,107960.0,107950.0,1.32677133]
[1751191133061,0.0399,107960.0,107950.0,1.32677133]
[1751191133268,0.2250901,107960.0,107950.0,1.32677133]
[1751191135572,0.2250901,107960.0,107950.0,1.29497133]
[1751191139164,0.2250901,107960.0,107950.0,1.36873574]
[1751191140376,0.0399,107960.0,107950.0,1.36873574]
[1751191140571,0.2172758,107970.0,107960.0,0.1851901]
[1751191140875,0.2172758,107970.0,107960.0,1.36593439]
[1751191141170,0.2172758,107970.0,107960.0,1.43243439]
[1751191141574,0.2172758,107970.0,107960.0,1.18475451]
[1751191141776,0.2172758,107970.0,107960.0,1.4396988]
[1751191141967,0.2172758,107970.0,107960.0,1.36593439]
[1751191142169,0.2222758,107970.0,107960.0,1.4396988]
[1751191142366,0.2222758,107970.0,107960.0,1.1109901]
[1751191142576,0.2222758,107970.0,107960.0,1.36593439]
[1751191143974,0.2549758,107970.0,107960.0,1.36593439]
[1751191144477,0.2549758,107970.0,107960.0,1.00513439]
[1751191144680,0.2549758,107970.0,107960.0,1.72673439]
[1751191145075,0.2549758,107970.0,107960.0,1.75813439]
[1751191145276,0.2549758,107970.0,107960.0,1.81351137]
[1751191146480,0.2549758,107970.0,107960.0,1.82788225]
[1751191147477,0.2549758,107970.0,107960.0,1.79648225]
[1751191152089,0.2549758,107970.0,107960.0,1.23148225]
[1751191152383,0.2549758,107970.0,107960.0,1.79031137]
[1751191152683,0.2549758,107970.0,107960.0,1.8086988]
[1751191154881,0.2549758,107970.0,107960.0,0.98055451]
[1751191155077,0.50992009,107970.0,107960.0,0.83183451]
[1751191155278,0.50992009,107970.0,107960.0,1.19263451]
[1751191155578,0.2549758,107970.0,107960.0,1.4475788]
[1751191156384,0.2549758,107970.0,107960.0,1.19263451]
[1751191156582,0.2549758,107970.0,107960.0,1.4475788]
[1751191157986,0.2549758,107970.0,107960.0,1.0867788]
[1751191158283,0.2549758,107970.0,107960.0,1.4475788]
[1751191158484,0.2549758,107970.0,107960.0,1.37381439]
[1751191159581,0.2549758,107970.0,107960.0,1.1188701]
[1751191159778,0.50992009,107970.0,107960.0,1.1319101]
[1751191160385,0.2549758,107970.0,107960.0,1.1319101]
[1751191161185,0.2549758,107970.0,107960.0,1.20163784]
[1751191161775,0.2549758,107970.0,107960.0,1.45658213]
[1751191161980,0.2549758,107970.0,107960.0,1.44222918]
[1751191162681,0.50984182,107970.0,107960.0,1.18728489]
[1751191162880,0.50984182,107970.0,107960.0,1.44215091]
[1751191163484,0.50984182,107970.0,107960.0,1.18728489]
[1751191163787,0.50984182,107970.0,107960.0,1.44215091]
[1751191164990,0.50984182,107970.0,107960.0,1.42369441]
[1751191165182,0.2549758,107970.0,107960.0,1.16882839]
[1751191165379,0.2549758,107970.0,107960.0,1.42369441]
[1751191165587,0.50984182,107970.0,107960.0,1.42369441]
[1751191166083,0.2549758,107970.0,107960.0,0.58290839]
[1751191166289,0.2549758,107970.0,107960.0,1.42345441]
[1751191166483,0.50984182,107970.0,107960.0,1.16858839]
[1751191166685,0.76470784,107970.0,107960.0,0.03691829]
[1751191166889,0.2549758,107970.0,107960.0,0.02769109]
[1751191167085,0.50984182,107970.0,107960.0,0.02769109]
[1751191167694,0.2549758,107970.0,107960.0,0.02769109]
[1751191167887,0.50984182,107970.0,107960.0,0.02769109]
[1751191168086,0.50984182,107970.0,107960.0,0.62877109]
[1751191168590,0.5098912,107970.0,107960.0,0.62877109]
[1751191169588,0.5098912,107970.0,107960.0,0.02769109]
[1751191171487,0.2549758,107970.0,107960.0,0.02769109]
[1751191171694,0.5098912,107970.0,107960.0,0.02769109]
[1751191173588,0.5098912,107970.0,107960.0,0.38849109]
[1751191175088,0.5098912,107970.0,107960.0,0.39771829]
[1751191176697,0.5098912,107970.0,107960.0,0.45309308]
[1751191178500,0.5409912,107970.0,107960.0,0.45309308]
[1751191179599,0.5409912,107970.0,107960.0,0.42540047]
[1751191180699,0.2860758,107970.0,107960.0,0.42540047]
[1751191180901,0.5409912,107970.0,107960.0,0.61059057]
[1751191182704,0.2860758,107970.0,107960.0,0.61059057]
[1751191182902,0.5409912,107970.0,107960.0,0.61059057]
[1751191183704,0.2860758,107970.0,107960.0,0.61059057]
[1751191184005,0.5409912,107970.0,107960.0,0.42540047]
[1751191186110,0.2860758,107970.0,107960.0,0.42540047]
[1751191186407,0.5409912,107970.0,107960.0,0.42540047]
[1751191186808,0.5409912,107970.0,107960.0,0.61059057]
[1751191187107,0.2860758,107970.0,107960.0,0.61059057]
[1751191187307,0.5409912,107970.0,107960.0,0.61059057]
[1751191188010,0.2860758,107970.0,107960.0,0.61059057]
[1751191188211,0.2860758,107970.0,107960.0,0.63467228]
[1751191188613,0.2860758,107970.0,107960.0,0.67159057]
[1751191192413,0.1901758,107970.0,107960.0,0.70319057]
[1751191193326,0.1901758,107970.0,107960.0,0.67550839]
[1751191195326,0.1901758,107970.0,107960.0,0.73088318]
[1751191198629,0.1901758,107970.0,107960.0,0.37008318]
[1751191198928,0.1901758,107970.0,107960.0,0.73088318]
[1751191200523,0.1901758,107970.0,107960.0,0.67550839]
[1751191200725,0.1901758,107970.0,107960.0,0.73088318]
[1751191200922,0.1901758,107970.0,107960.0,1.32556318]
[1751191201123,0.1901758,107970.0,107960.0,1.28864489]
[1751191201524,0.1901758,107970.0,107960.0,1.32557383]
[1751191201723,0.005,107970.0,107960.0,1.28864489]
[1751191201924,0.1851626,107980.0,107970.0,0.1851729]
[1751191202126,0.278727,107990.0,107980.0,0.1851558]
[1751191202429,0.278727,107990.0,107980.0,1.26280284]
[1751191203435,0.283727,107990.0,107980.0,1.26280284]
[1751191206135,0.283727,107990.0,107980.0,1.2351158]
[1751191207732,0.1911532,107990.0,107980.0,1.2351158]
[1751191207932,0.006,107990.0,107980.0,1.26280284]
[1751191209628,0.006,107990.0,107980.0,0.68271484]
[1751191209834,0.1911387,107990.0,107980.0,1.41000284]
[1751191210138,0.1861387,107990.0,107980.0,1.41000284]
[1751191210638,0.1861387,107990.0,107980.0,0.66824284]
[1751191210834,0.1861387,107990.0,107980.0,1.40968284]
[1751191213238,0.1861387,107990.0,107980.0,0.66824284]
[1751191213640,0.1861387,107990.0,107980.0,1.40880284]
[1751191213838,0.1861387,107990.0,107980.0,1.41803656]
[1751191214236,0.001,107990.0,107980.0,1.41803656]
[1751191214434,0.001,107990.0,107980.0,1.44565905]
[1751191214740,0.001,107990.0,107980.0,1.43649694]
[1751191215840,0.1861387,107990.0,107980.0,1.43649694]
[1751191216142,0.1861387,107990.0,107980.0,1.45488021]
[1751191217249,0.1861387,107990.0,107980.0,1.43631482]
[1751191217545,0.001,107990.0,107980.0,1.43631482]
[1751191221943,0.1851362,108000.0,107990.0,0.3239681]
[1751191221944,0.1851238,108000.0,107990.0,0.3239681]
[1751191222247,0.1851238,108000.0,107990.0,0.80389422]
[1751191223148,0.1851238,108000.0,107990.0,0.8183662]
[1751191223545,0.1851238,108000.0,107990.0,0.80389422]
[1751191223751,0.1851238,108000.0,107990.0,0.8183662]
[1751191224350,0.1851238,108000.0,107990.0,0.81836621]
[1751191224649,0.1851238,108000.0,107990.0,0.82773727]
[1751191224853,0.3284939,108010.0,108000.0,0.1851215]
[1751191225051,0.3284939,108010.0,108000.0,1.22703864]
[1751191225052,0.2822043,108010.0,108000.0,1.22703864]
[1751191225252,0.3249268,108020.0,108010.0,0.1851043]
[1751191225452,0.4234268,108020.0,108010.0,0.1851043]
[1751191231860,0.0995,108020.0,108010.0,0.5459043]
[1751191232159,0.2845872,108020.0,108010.0,0.5459043]
[1751191233543,0.2845872,108020.0,108010.0,0.5792043]
[1751191235858,0.2845872,108020.0,108010.0,0.6107043]
[1751191236156,0.2845872,108020.0,108010.0,0.63828144]
[1751191236757,0.2845872,108020.0,108010.0,0.65501354]
[1751191239453,0.2845872,108020.0,108010.0,0.69178917]
[1751191239654,0.2845872,108020.0,108010.0,0.65501354]
[1751191239862,0.2845872,108020.0,108010.0,0.69178917]
[1751191240260,0.2845872,108020.0,108010.0,0.65501354]
[1751191240863,0.2845872,108020.0,108010.0,0.69178917]
[1751191241062,0.2845872,108020.0,108010.0,1.05258917]
[1751191241661,0.2845872,108020.0,108010.0,0.98778917]
[1751191250268,0.2845872,108020.0,108010.0,0.96021203]
[1751191251368,0.2845872,108020.0,108010.0,1.01541105]
[1751191252170,0.2845872,108020.0,108010.0,1.57172875]
[1751191252368,0.2845872,108020.0,108010.0,1.54409203]
[1751191253569,0.2845872,108020.0,108010.0,1.59929105]
[1751191259975,0.2845872,108020.0,108010.0,1.56251542]
[1751191260875,0.2845872,108020.0,108010.0,1.59940205]
[1751191262181,0.2845872,108020.0,108010.0,0.87780205]
[1751191262380,0.2845872,108020.0,108010.0,1.23860205]
[1751191263179,0.2845872,108020.0,108010.0,1.20171542]
[1751191267584,0.2845872,108020.0,108010.0,1.26451542]
[1751191272886,0.2845872,108020.0,108010.0,1.26031542]
[1751191276185,0.2845872,108020.0,108010.0,0.62721731]
[1751191276391,0.2845872,108020.0,108010.0,1.20625731]
[1751191278295,0.2845872,108020.0,108010.0,0.62721731]
[1751191278488,0.2845872,108020.0,108010.0,1.20625731]
[1751191279996,0.2845872,108020.0,108010.0,1.23795731]
[1751191282097,0.2845872,108020.0,108010.0,1.25234938]
[1751191283199,0.2845872,108020.0,108010.0,1.23795731]
[1751191286200,0.2845872,108020.0,108010.0,1.22857542]
[1751191288008,0.2845872,108020.0,108010.0,1.19687542]
[1751191291412,0.2845872,108020.0,108010.0,0.61783542]
[1751191291709,0.2845872,108020.0,108010.0,1.19443542]
[1751191293306,0.2845872,108020.0,108010.0,0.43273112]
[1751191293510,0.2845872,108020.0,108010.0,1.19431542]
[1751191294413,0.2845872,108020.0,108010.0,1.23123057]
[1751191294714,0.2845872,108020.0,108010.0,1.19431542]
[1751191294908,0.2845872,108020.0,108010.0,1.2312305]
[1751191295109,0.2845872,108020.0,108010.0,1.2309105]
[1751191295310,0.2845872,108020.0,108010.0,1.17571148]
[1751191296016,0.4219872,108020.0,108010.0,0.0921141]
[1751191297114,0.4219872,108020.0,108010.0,0.03691508]
[1751191297311,0.4219872,108020.0,108010.0,0.06460089]
[1751191298717,0.6071472,108020.0,108010.0,0.06460089]
[1751191299613,0.4219872,108020.0,108010.0,0.06460089]
[1751191299816,0.6071472,108020.0,108010.0,0.06460089]
[1751191300720,0.4219872,108020.0,108010.0,0.02768581]
[1751191303321,0.1851043,108010.0,108000.0,0.70306989]
[1751191303513,0.2809043,108010.0,108000.0,0.70306989]
[1751191303717,0.2809043,108010.0,108000.0,0.67538408]
[1751191304318,0.2809043,108010.0,108000.0,0.65676798]
[1751191306124,0.2809043,108010.0,108000.0,0.29596798]
[1751191306315,0.2809043,108010.0,108000.0,0.62910428]
[1751191307816,0.2809043,108010.0,108000.0,0.57357197]
[1751191308018,0.2809043,108010.0,108000.0,0.61048705]
[1751191308315,0.2809043,108010.0,108000.0,0.57357197]
[1751191308515,0.2809043,108010.0,108000.0,0.61048705]
[1751191312520,0.2809043,108010.0,108000.0,0.42537445]
[1751191312726,0.2809043,108010.0,108000.0,0.02765937]
[1751191316329,0.1851215,108000.0,107990.0,0.82311614]
[1751191317432,0.1851215,108000.0,107990.0,0.82411614]
[1751191317733,0.19453801,108000.0,107990.0,0.82411614]
[1751191322130,0.19453801,108000.0,107990.0,0.46331614]
[1751191322327,0.19453801,108000.0,107990.0,0.82411614]
[1751191324334,0.19453801,108000.0,107990.0,0.86103122]
[1751191326336,0.19453801,108000.0,107990.0,0.85165579]
[1751191335440,0.1851215,108000.0,107990.0,0.85165579]
[1751191336945,0.1851215,108000.0,107990.0,0.80537179]
[1751191340342,0.0977,108020.0,108010.0,0.1851043]
[1751191340343,0.001,108020.0,108010.0,0.1851043]
[1751191340541,0.001,108020.0,108010.0,1.64818678]
[1751191341344,0.001,108020.0,108010.0,1.82081116]
[1751191341843,0.18663006,108040.0,108030.0,0.18507]
[1751191342045,0.18663006,108040.0,108030.0,1.13552941]
[1751191342046,0.00157416,108040.0,108030.0,1.13552941]
[1751191342237,0.00157416,108040.0,108030.0,1.23152941]
[1751191342648,0.00157416,108040.0,108030.0,1.25920723]
[1751191342941,0.00157416,108040.0,108030.0,1.80181382]
[1751191343147,0.00157416,108040.0,108030.0,1.78326333]
[1751191343645,0.00157416,108040.0,108030.0,1.79248274]
[1751191344144,0.00157416,108040.0,108030.0,1.79246092]
[1751191344546,0.00157416,108040.0,108030.0,1.82008568]
[1751191345340,0.00157416,108040.0,108030.0,1.76486392]
[1751191345949,0.00157416,108040.0,108030.0,1.82008568]
[1751191346250,0.00157416,108040.0,108030.0,1.79242278]
[1751191347149,0.00157416,108040.0,108030.0,1.82818605]
[1751191349356,0.00157416,108040.0,108030.0,1.11938605]
[1751191349557,0.00157416,108040.0,108030.0,1.82798605]
[1751191351365,0.18662706,108040.0,108030.0,1.26628605]
[1751191351556,0.18662706,108040.0,108030.0,1.83916605]
[1751191353362,0.00157416,108040.0,108030.0,1.83912605]
[1751191357266,0.00157416,108040.0,108030.0,1.69222605]
[1751191361369,0.00157416,108040.0,108030.0,1.72904056]
[1751191363167,0.00157416,108040.0,108030.0,1.75670346]
[1751191363975,0.1861369,108050.0,108040.0,0.1850529]
[1751191364176,0.1861369,108050.0,108040.0,0.99517101]
[1751191366073,0.2169369,108050.0,108040.0,0.99517101]
[1751191366274,0.2169369,108050.0,108040.0,0.9676529]
[1751191367376,0.2483369,108050.0,108040.0,0.9676529]
[1751191369078,0.0011,108050.0,108040.0,0.9676529]
[1751191369277,0.1861358,108050.0,108040.0,0.99517101]
[1751191369484,0.1861358,108050.0,108040.0,1.50681101]
[1751191369777,0.2492358,108050.0,108040.0,1.50681101]
[1751191370276,0.2492358,108050.0,108040.0,1.54362552]
[1751191370979,0.2492358,108050.0,108040.0,1.52127666]
[1751191373980,0.2492358,108050.0,108040.0,1.58457666]
[1751191375482,0.2492358,108050.0,108040.0,1.57011101]
[1751191375682,0.2492358,108050.0,108040.0,1.5425929]
[1751191381086,0.2492358,108050.0,108040.0,0.8209929]
[1751191381392,0.2492358,108050.0,108040.0,1.5425929]
[1751191382288,0.2492358,108050.0,108040.0,1.55705855]
[1751191384492,0.2492358,108050.0,108040.0,1.52675855]
[1751191384789,0.2492358,108050.0,108040.0,1.49355855]
[1751191384989,0.2492358,108050.0,108040.0,1.56730757]
[1751191386191,0.2492358,108050.0,108040.0,1.5488802]
[1751191389686,0.2492358,108050.0,108040.0,1.53441455]
[1751191389886,0.2492358,108050.0,108040.0,0.97644032]
[1751191390187,0.2492358,108050.0,108040.0,1.54880032]
[1751191390792,0.2492358,108050.0,108040.0,1.18800032]
[1751191392987,0.2492358,108050.0,108040.0,0.82720032]
[1751191393192,0.2492358,108050.0,108040.0,1.18800032]
[1751191393985,0.2492358,108050.0,108040.0,0.82720032]
[1751191394192,0.2492358,108050.0,108040.0,1.18800032]
[1751191396283,0.2492358,108050.0,108040.0,1.20642769]
[1751191397992,0.2492358,108050.0,108040.0,1.18803485]
[1751191400192,0.2492358,108050.0,108040.0,1.13267867]
[1751191400395,0.2492358,108050.0,108040.0,1.18803501]
[1751191402496,0.2492358,108050.0,108040.0,0.61567501]
[1751191402698,0.2492358,108050.0,108040.0,1.18783501]
[1751191403098,0.2492358,108050.0,108040.0,1.13247867]
[1751191403293,0.2492358,108050.0,108040.0,0.56031867]
[1751191403499,0.2492358,108050.0,108040.0,1.20622769]
[1751191403899,0.2492358,108050.0,108040.0,1.13247867]
[1751191407403,0.2492358,108050.0,108040.0,1.1180129]
[1751191408205,0.2492358,108050.0,108040.0,1.19176192]
[1751191408405,0.2492358,108050.0,108040.0,1.1180129]
[1751191409504,0.2492358,108050.0,108040.0,1.1505129]
[1751191410004,0.2492358,108050.0,108040.0,1.1808129]
[1751191411306,0.2492358,108050.0,108040.0,1.25456192]
[1751191412603,0.2492358,108050.0,108040.0,1.26902774]
[1751191414009,0.2492358,108050.0,108040.0,0.94022774]
[1751191414314,0.2492358,108050.0,108040.0,1.30102774]
[1751191416312,0.2492358,108050.0,108040.0,1.28263488]
[1751191417716,0.2794358,108050.0,108040.0,1.28263488]
[1751191422118,0.2794358,108050.0,108040.0,1.26816906]
[1751191424319,0.2492358,108050.0,108040.0,1.26816906]
[1751191426326,0.2492358,108050.0,108040.0,1.28656192]
[1751191426624,0.0011,108050.0,108040.0,1.28656192]
[1751191426817,0.1861358,108050.0,108040.0,1.28656192]
[1751191428921,0.1861358,108050.0,108040.0,0.92576192]
[1751191429225,0.1861358,108050.0,108040.0,1.28656192]
[1751191432231,0.1861358,108050.0,108040.0,1.30102751]
[1751191435337,0.0011,108050.0,108040.0,1.30102751]
[1751191435724,0.1861358,108050.0,108040.0,1.30102751]
[1751191437233,0.0011,108050.0,108040.0,1.30102751]
[1751191437831,0.09617416,108060.0,108050.0,0.1850358]
[1751191438029,0.09617416,108060.0,108050.0,0.69867981]
[1751191439435,0.09617416,108060.0,108050.0,0.7131448]
[1751191439632,0.00157416,108060.0,108050.0,0.7131448]
[1751191440024,0.36337416,108080.0,108070.0,0.1850016]
[1751191440025,0.28525866,108080.0,108070.0,0.1850016]
[1751191440230,0.10027416,108080.0,108070.0,1.14497987]
[1751191440528,0.10027416,108080.0,108070.0,1.18185722]
[1751191440529,0.28525866,108080.0,108070.0,1.18185722]
[1751191440831,0.28525866,108080.0,108070.0,1.15944306]
[1751191441035,0.10027416,108080.0,108070.0,1.15944306]
[1751191441236,0.10027416,108080.0,108070.0,1.16866284]
[1751191441532,0.10027416,108080.0,108070.0,1.15942304]
[1751191441932,0.10027416,108080.0,108070.0,1.2297628]
[1751191442131,0.28525876,108080.0,108070.0,1.2297628]
[1751191442331,0.28525876,108080.0,108070.0,1.22976254]
[1751191442637,0.28525876,108080.0,108070.0,1.1541193]
[1751191443936,0.28525876,108080.0,108070.0,0.5826793]
[1751191444127,0.28525876,108080.0,108070.0,1.1540793]
[1751191446236,0.28525876,108080.0,108070.0,1.1448055]
[1751191446737,0.28525876,108080.0,108070.0,0.5734055]
[1751191447040,0.28525876,108080.0,108070.0,1.1447655]
[1751191447437,0.28525876,108080.0,108070.0,1.1762655]
[1751191448343,0.28525876,108080.0,108070.0,1.1447655]
[1751191448541,0.28525876,108080.0,108070.0,1.1816432]
[1751191451945,0.28525876,108080.0,108070.0,0.8207232]
[1751191452140,0.28525876,108080.0,108070.0,1.1446455]
[1751191456244,0.28525876,108080.0,108070.0,1.1170416]
[1751191459248,0.28525876,108080.0,108070.0,1.1168816]
[1751191460148,0.28525876,108080.0,108070.0,0.5458016]
[1751191460449,0.28525876,108080.0,108070.0,1.1168816]
[1751191460945,0.28525876,108080.0,108070.0,0.1850016]
[1751191461245,0.1850017,108070.0,108060.0,1.30022368]
[1751191461454,0.2795017,108070.0,108060.0,1.30022368]
[1751191461953,0.2795017,108070.0,108060.0,0.72914368]
[1751191462646,0.2795017,108070.0,108060.0,1.30018368]
[1751191462949,0.2795017,108070.0,108060.0,0.72914368]
[1751191463148,0.2795017,108070.0,108060.0,1.30018368]
[1751191463544,0.2795017,108070.0,108060.0,1.33068368]
[1751191463754,0.2795017,108070.0,108060.0,1.36378368]
[1751191465051,0.00257416,108080.0,108070.0,0.1850017]
[1751191465246,0.18755876,108080.0,108070.0,0.5458017]
[1751191465446,0.18755876,108080.0,108070.0,0.6072017]
[1751191465650,0.21875876,108080.0,108070.0,0.6072017]
[1751191466049,0.03377416,108080.0,108070.0,0.6072017]
[1751191466351,0.00257416,108080.0,108070.0,0.67956859]
[1751191466949,0.00257416,108080.0,108070.0,0.65196469]
[1751191467547,0.00257416,108080.0,108070.0,0.68884239]
[1751191467942,0.00257416,108080.0,108070.0,0.74415894]
[1751191468148,0.00257416,108080.0,108070.0,0.69281825]
[1751191470054,0.18755876,108080.0,108070.0,0.69281825]
[1751191472850,0.18755876,108080.0,108070.0,0.72967399]
[1751191474850,0.00257416,108080.0,108070.0,0.72967399]
[1751191475051,0.18755876,108080.0,108070.0,0.72967399]
[1751191475261,0.00257416,108080.0,108070.0,0.72967399]
[1751191476454,0.18755876,108080.0,108070.0,0.72967399]
[1751191476945,0.00257416,108080.0,108070.0,0.72967399]
[1751191477552,0.00257416,108080.0,108070.0,0.68349393]
[1751191477755,0.18755876,108080.0,108070.0,0.73881048]
[1751191478354,0.18755876,108080.0,108070.0,0.73880801]
[1751191480752,0.18755876,108080.0,108070.0,0.68881779]
[1751191484262,0.18755876,108080.0,108070.0,0.69798384]
[1751191484463,0.18755876,108080.0,108070.0,0.75330039]
[1751191484964,0.19698437,108080.0,108070.0,0.7019843]
[1751191486265,0.01199977,108080.0,108070.0,0.75329864]
[1751191486668,0.01199977,108080.0,108070.0,0.7019843]
[1751191486960,0.19698437,108080.0,108070.0,0.69281825]
[1751191488165,0.19698437,108080.0,108070.0,0.74413185]
[1751191488554,0.19698437,108080.0,108070.0,0.75341059]
[1751191488761,0.19698437,108080.0,108070.0,0.70209699]
[1751191489059,0.19698437,108080.0,108070.0,0.71655981]
[1751191489266,0.19698437,108080.0,108070.0,0.70209699]
[1751191489461,0.01199977,108080.0,108070.0,0.70209699]
[1751191489666,0.01199977,108080.0,108070.0,0.7534104]
[1751191490059,0.01199977,108080.0,108070.0,0.70209699]
[1751191492163,0.19698437,108080.0,108070.0,0.69809701]
[1751191492359,0.29328437,108080.0,108070.0,0.69809701]
[1751191492562,0.07579977,108080.0,108070.0,0.69809701]
[1751191492767,0.04389977,108080.0,108070.0,0.71655981]
[1751191493069,0.19698437,108080.0,108070.0,0.70209699]
[1751191493666,0.19698437,108080.0,108070.0,0.69281825]
[1751191494468,0.19698437,108080.0,108070.0,0.70728107]
[1751191495268,0.19698437,108080.0,108070.0,0.65196452]
[1751191495569,0.19698437,108080.0,108070.0,0.70727371]
[1751191496265,0.01199977,108080.0,108070.0,0.68883759]
[1751191496568,0.19698437,108080.0,108070.0,0.74414678]
[1751191496864,0.19698437,108080.0,108070.0,0.71646106]
[1751191497458,0.01199977,108080.0,108070.0,0.71646221]
[1751191498066,0.01199977,108080.0,108070.0,0.6611435]
[1751191498663,0.01199977,108080.0,108070.0,0.71646174]
[1751191499264,0.01199977,108080.0,108070.0,0.6611435]
[1751191499861,0.01199977,108080.0,108070.0,0.69802248]
[1751191500261,0.01199977,108080.0,108070.0,0.6611435]
[1751191500667,0.01199977,108080.0,108070.0,0.69802294]
[1751191500972,0.00257416,108080.0,108070.0,0.6611435]
[1751191501168,0.00257416,108080.0,108070.0,0.71646351]
[1751191501966,0.00257416,108080.0,108070.0,0.6611435]
[1751191502367,0.00257416,108080.0,108070.0,0.71646411]
[1751191502563,0.00257416,108080.0,108070.0,0.6611435]
[1751191502870,0.00257416,108080.0,108070.0,0.71646411]
[1751191503072,0.00257416,108080.0,108070.0,0.6611435]
[1751191505285,0.18755876,108080.0,108070.0,0.6611435]
[1751191506071,0.00257416,108080.0,108070.0,0.6611435]
[1751191506269,0.00257416,108080.0,108070.0,0.75334318]
[1751191506471,0.18755876,108080.0,108070.0,0.69802337]
[1751191506680,0.18755876,108080.0,108070.0,0.75334318]
[1751191508377,0.00257416,108080.0,108070.0,0.75334318]
[1751191508579,0.00257416,108080.0,108070.0,0.6888032]
[1751191508878,0.00257416,108080.0,108070.0,0.75334318]
[1751191509571,0.00257416,108080.0,108070.0,0.69802337]
[1751191510080,0.00257416,108080.0,108070.0,0.75334318]
[1751191510467,0.18755876,108080.0,108070.0,0.75334318]
[1751191510972,0.00257416,108080.0,108070.0,0.75334318]
[1751191511173,0.00257416,108080.0,108070.0,0.69802337]